[Event "LEM Niedersachsen-A-Open 2025"]
[Site "Verden"]
[Date "2025.01.04"]
[Round "5.16"]
[White "Nuerenberg, Marius"]
[Black "Koch, Yannick"]
[Result "1/2-1/2"]
[ECO "B46"]
[WhiteElo "1911"]
[BlackElo "2024"]
[Annotator "NA RC"]
[PlyCount "49"]
[EventDate "2024.12.27"]
[EventType "swiss"]
[EventCountry "GER"]
[SourceTitle "playchess.com"]
[Source "ChessBase"]
[SourceQuality "1"]
[TimeControl "40/5400+30:1800+30"]

1. e4 {[%emt 0:00:02]} c5 {[%emt 0:00:23]} 2. Nf3 {[%emt 0:00:07]} a6 {[%emt 0:00:15]} 3. Nc3 {[%emt 0:00:45]} e6 {[%emt 0:00:28]} 4. d4 {[%emt 0:00:15]} cxd4 {[%emt 0:00:07]} 5. Nxd4 {[%emt 0:00:04]} Nc6 {[%emt 0:01:10]} 6. Nxc6 {[%emt 0:01:34] B46: Sicilian: Taimanov: 5 Nc3 a6.} dxc6 {[%emt 0:04:29]} 7. Qxd8+ {[%emt 0:01:15]} Kxd8 {[%emt 0:00:02]} 8. Be3 {[%emt 0:06:28]} Bd6 {[%emt 0:02:23]} 9. O-O-O {[%emt 0:01:15]} Ke7 {[%emt 0:01:36]} 10. Be2 {[%emt 0:10:40]} e5 {[%emt 0:01:53]} 11. Rd2 {[%emt 0:11:33]} Be6 {[%emt 0:06:28]} 12. Rhd1 {[%emt 0:00:27]} Bc7 {[%emt 0:00:43]} 13. Bc5+ {[%emt 0:07:56]} Kf6 {[%emt 0:01:33]} 14. Na4 {[%emt 0:17:19]} Nh6 {[%emt 0:11:43]} (14... g5 $16 {keeps fighting.} 15. g3 Kg7) 15. Nb6 {[%emt 0:05:21]} Rad8 {[%emt 0:00:52]} 16. Nd7+ {[%emt 0:00:51]} Bxd7 {[%emt 0:03:39]} 17. Rxd7 {[%emt 0:00:07]} Rxd7 {[%emt 0:00:21]} 18. Rxd7 {[%emt 0:00:07]} Rc8 {[%emt 0:00:58]} 19. Bc4 {[%emt 0:03:18]} b5 {[%emt 0:01:32]} 20. Bb3 {[%emt 0:00:49]} Kg6 {[%emt 0:03:09]} 21. c3 {[%emt 0:06:47]} Bd8 {[%emt 0:02:29]} 22. f3 {[%emt 0:05:01]} Bg5+ {[%emt 0:01:05]} 23. Kc2 {[%emt 0:01:00]} Rd8 {[%emt 0:00:23]} 24. Rxd8 $16 {[%emt 0:01:57]} (24. Ra7 $18 Rd2+ 25. Kb1 Rxg2 26. Rxa6) 24... Bxd8 {[%emt 0:00:03]} 25. Be3 {[%emt 0:01:48]} 1/2-1/2

[Event "LEM Niedersachsen-A-Open 2025"]
[Site "Verden"]
[Date "2025.01.04"]
[Round "5.17"]
[White "Bangert, Jonas"]
[Black "Kiesel, Lucas"]
[Result "1/2-1/2"]
[ECO "A50"]
[WhiteElo "1894"]
[BlackElo "2023"]
[Annotator "NA RC"]
[PlyCount "81"]
[EventDate "2024.12.27"]
[EventType "swiss"]
[EventCountry "GER"]
[SourceTitle "playchess.com"]
[Source "ChessBase"]
[SourceQuality "1"]
[TimeControl "40/5400+30:1800+30"]

1. d4 {[%emt 0:00:03]} Nf6 {[%emt 0:00:04]} 2. Nf3 {[%emt 0:00:04]} g6 {[%emt 0:00:04]} 3. c4 {[%emt 0:00:46]} Bg7 {[%emt 0:00:04]} 4. Nc3 {[%emt 0:00:09]} O-O {[%emt 0:00:05]} 5. g3 {[%emt 0:00:43]} b6 {[%emt 0:04:54]} 6. Bg2 {[%emt 0:00:33]} Bb7 {[%emt 0:00:03]} 7. O-O {[%emt 0:00:10]} d6 {[%emt 0:01:47]} 8. Qc2 {[%emt 0:07:58] A50: Queen's Fianchetto Defence (1 d4 Nf6 2 c4 b6).} c5 {[%emt 0:00:50]} 9. dxc5 {[%emt 0:01:08]} bxc5 {[%emt 0:00:53]} 10. Bd2 {[%emt 0:11:25]} Nc6 {[%emt 0:02:57]} 11. Rad1 {[%emt 0:00:53]} Rb8 {[%emt 0:04:19]} 12. Rfe1 {[%emt 0:10:46]} h6 {[%emt 0:06:47]} 13. e4 {[%emt 0:07:12]} e5 {[%emt 0:16:51]} 14. Nd5 {[%emt 0:10:09]} Nxd5 {[%emt 0:04:37]} 15. exd5 {[%emt 0:00:06]} Nd4 {[%emt 0:00:33]} 16. Nxd4 {[%emt 0:03:41]} cxd4 {[%emt 0:09:45]} 17. Qa4 {[%emt 0:05:08]} Bc8 {[%emt 0:14:28]} 18. Ba5 {[%emt 0:07:10]} Qe7 {[%emt 0:02:14]} 19. b3 {[%emt 0:06:06]} f5 {[%emt 0:16:36]} 20. Rxd4 {[%emt 0:02:37]} e4 {[%emt 0:00:09]} 21. Rdd1 {[%emt 0:00:54]} Bd7 {[%emt 0:02:34]} 22. Qa3 {[%emt 0:00:21]} Be5 {[%emt 0:00:06]} 23. Qc1 {[%emt 0:03:46]} Qg7 {[%emt 0:01:00]} 24. f3 {[%emt 0:13:33]} f4 {[%emt 0:01:40]} 25. Rxe4 {[%emt 0:01:53]} Bf5 {[%emt 0:01:58]} 26. Re2 {[%emt 0:01:27]} Rbe8 {[%emt 0:02:54]} 27. Rde1 {[%emt 0:00:36]} Bd3 {[%emt 0:00:22]} 28. Rxe5 {[%emt 0:01:29]} Rxe5 {[%emt 0:00:18]} 29. Bc3 {[%emt 0:00:19]} Rxe1+ {[%emt 0:00:05]} 30. Qxe1 {[%emt 0:00:00]} Qf7 {[%emt 0:00:20]} 31. Qd2 {[%emt 0:01:15]} Bb1 {[%emt 0:00:31]} 32. g4 {[%emt 0:03:04]} g5 {[%emt 0:01:00]} 33. Qd4 {[%emt 0:00:35]} Kh7 {[%emt 0:00:32]} 34. Bf1 {[%emt 0:00:20]} Rg8 {[%emt 0:03:32]} 35. Kg2 {[%emt 0:00:18]} Qe7 {[%emt 0:01:39]} 36. h3 {[%emt 0:00:48]} Bg6 {[%emt 0:00:59]} 37. Kf2 {[%emt 0:00:55]} Re8 {[%emt 0:00:31]} 38. Kg2 {[%emt 0:00:21]} Rg8 {[%emt 0:00:54]} 39. Kf2 $11 {[%emt 0:00:10]} Re8 {[%emt 0:00:06]} 40. Kg2 {[%emt 0:00:21]} Rg8 {[%emt 0:01:29]} {Better is} 41. b4 $18 1/2-1/2

[Event "LEM Niedersachsen-A-Open 2025"]
[Site "Verden"]
[Date "2025.01.04"]
[Round "5.18"]
[White "Schumann, Steffen"]
[Black "Seer, Maurice"]
[Result "1-0"]
[ECO "C99"]
[WhiteElo "2002"]
[BlackElo "1911"]
[Annotator "NA RC"]
[PlyCount "104"]
[EventDate "2024.12.27"]
[EventType "swiss"]
[EventCountry "GER"]
[SourceTitle "playchess.com"]
[Source "ChessBase"]
[SourceQuality "1"]
[TimeControl "40/5400+30:1800+30"]

1. e4 {[%emt 0:00:01]} e5 {[%emt 0:00:05]} 2. Nf3 {[%emt 0:00:04]} Nc6 {[%emt 0:00:05]} 3. Bb5 {[%emt 0:00:04]} a6 {[%emt 0:00:11]} 4. Ba4 {[%emt 0:00:03]} Nf6 {[%emt 0:00:08]} 5. O-O {[%emt 0:00:05]} Be7 {[%emt 0:00:08]} 6. Re1 {[%emt 0:00:03]} b5 {[%emt 0:00:18]} 7. Bb3 {[%emt 0:00:03]} d6 {[%emt 0:00:24]} 8. c3 {[%emt 0:00:18]} O-O {[%emt 0:00:16]} 9. h3 {[%emt 0:00:14]} Na5 {[%emt 0:00:34]} 10. Bc2 {[%emt 0:00:09]} c5 {[%emt 0:00:18]} 11. d4 {[%emt 0:00:12]} Qc7 {[%emt 0:00:53]} 12. Nbd2 {[%emt 0:00:27]} cxd4 {[%emt 0:00:19]} 13. cxd4 {[%emt 0:00:07]} Nc6 {[%emt 0:01:18]} 14. d5 {[%emt 0:08:13]} Nb4 {[%emt 0:00:49]} 15. Bb1 {[%emt 0:00:44]} a5 {[%emt 0:00:54]} 16. Nf1 {[%emt 0:04:33]} Bd7 {[%emt 0:03:09]} 17. Bd2 {[%emt 0:05:25]} Na6 {[%emt 0:01:56] C99: Closed Ruy Lopez: Chigorin Defence: 11 d4 Qc7 12 Nbd2 cxd4.} 18. g4 {[%emt 0:01:20]} Rfc8 {[%emt 0:09:59]} 19. Bd3 {[%emt 0:03:59]} Nc5 {[%emt 0:03:42]} 20. Rc1 {[%emt 0:00:34]} Qd8 {[%emt 0:02:08]} 21. Bc2 {[%emt 0:04:25]} b4 {[%emt 0:04:55]} 22. Ng3 {[%emt 0:01:38]} g6 {[%emt 0:12:15]} 23. Nh2 {[%emt 0:21:18]} (23. Kg2 $11) 23... Ra7 {[%emt 0:57:16]} 24. f4 {[%emt 0:07:12]} Bb5 {[%emt 0:00:00]} 25. fxe5 {[%emt 0:00:42]} dxe5 {[%emt 0:00:00]} 26. Qf3 {[%emt 0:03:34]} (26. h4 $11) 26... Qd6 {[%emt 0:00:00]} 27. g5 {[%emt 0:01:55]} Ne8 {[%emt 0:00:00]} 28. Ng4 {[%emt 0:01:04]} Bf8 {[%emt 0:00:00]} 29. Ne2 {[%emt 0:14:09]} Bg7 {[%emt 0:00:00]} 30. Kg2 {[%emt 0:05:25]} Rac7 {[%emt 0:00:00]} 31. Bb1 {[%emt 0:03:43]} f6 {[%emt 0:00:00]} 32. gxf6 {[%emt 0:05:43]} Nxf6 {[%emt 0:00:00]} 33. Nxf6+ {[%emt 0:01:57]} Bxf6 {[%emt 0:00:00]} 34. Qg3 {[%emt 0:01:42]} Rf8 {[%emt 0:01:51]} 35. Nd4 {[%emt 0:01:21]} Bd7 {[%emt 0:01:17]} 36. Nf3 {[%emt 0:00:34]} Bc8 {[%emt 0:01:18]} 37. Be3 {[%emt 0:02:04]} Na4 {[%emt 0:01:32]} 38. Rxc7 {[%emt 0:01:32]} Qxc7 {[%emt 0:00:01] [#]} 39. Rc1 {[%emt 0:00:18]} (39. Re2 $1 $16) 39... Qf7 {[%emt 0:01:13]} 40. Rf1 {[%emt 0:02:44]} Qe7 {[%emt 0:00:36]} 41. Rf2 {[%emt 0:06:20]} Nc5 {[%emt 0:13:01]} 42. h4 {[%emt 0:02:02]} Ba6 {[%emt 0:03:28]} 43. Bh6 {[%emt 0:10:05]} Re8 {[%emt 0:07:47] [#]} 44. Bg5 $11 {[%emt 0:04:44]} (44. Ng5 $1 $16) 44... Nd3 {[%emt 0:03:17]} 45. Bxd3 {[%emt 0:00:52]} Bxd3 {[%emt 0:00:16]} 46. Bxf6 {[%emt 0:00:43]} Qxf6 {[%emt 0:00:40]} 47. Ng5 {[%emt 0:00:09]} Qa6 {[%emt 0:01:25]} 48. Qf3 {[%emt 0:00:45]} Bxe4 {[%emt 0:01:43]} 49. Nxe4 {[%emt 0:00:29]} Qc8 {[%emt 0:01:43]} 50. Nf6+ {[%emt 0:00:27]} Kg7 {[%emt 0:00:27]} 51. Nxe8+ {[%emt 0:00:07]} Qxe8 {[%emt 0:00:06]} 52. Qf6+ {[%emt 0:00:07]} Kg8 {[%emt 0:00:16]} 1-0

[Event "LEM Niedersachsen-A-Open 2025"]
[Site "Verden"]
[Date "2025.01.04"]
[Round "5.19"]
[White "Rieping, Lea"]
[Black "Stein, Luis"]
[Result "1/2-1/2"]
[ECO "C23"]
[WhiteElo "1973"]
[BlackElo "1899"]
[Annotator "RC"]
[PlyCount "37"]
[EventDate "2024.12.27"]
[EventType "swiss"]
[EventCountry "GER"]
[SourceTitle "playchess.com"]
[Source "ChessBase"]
[SourceQuality "1"]
[TimeControl "40/5400+30:1800+30"]

1. e4 {[%emt 0:00:02]} e5 {[%emt 0:00:04]} 2. Bc4 {[%emt 1:31:28]} c6 {[%emt 0:00:18]} 3. Nf3 {[%emt 0:00:00]} d5 {[%emt 0:00:10]} 4. exd5 {[%emt 0:00:00]} cxd5 {[%emt 0:00:05]} 5. Bb3 {[%emt 0:00:00]} Nc6 {[%emt 0:00:38]} 6. Nc3 {[%emt 0:00:00]} e4 {[%emt 0:11:30]} 7. Ng1 {[%emt 0:00:00]} Be6 {[%emt 0:03:08]} 8. d3 {[%emt 0:00:00]} exd3 {[%emt 0:07:32]} 9. Qxd3 {[%emt 0:00:00]} Bb4 {[%emt 0:00:19]} 10. Bd2 {[%emt 0:00:00]} Nge7 {[%emt 0:01:23]} 11. Nf3 {[%emt 0:00:00]} O-O {[%emt 0:02:50]} 12. Nd4 {[%emt 0:00:00]} Nxd4 {[%emt 0:03:45]} 13. Qxd4 {[%emt 0:00:00]} Ba5 {[%emt 0:00:57]} 14. O-O {[%emt 0:00:00]} Bb6 {[%emt 0:03:54]} 15. Qd3 {[%emt 0:00:00]} d4 {[%emt 0:09:20]} 16. Ne4 {[%emt 0:00:00]} Bxb3 {[%emt 0:09:25]} 17. axb3 {[%emt 0:00:00]} Ng6 {[%emt 0:00:07]} 18. f4 {[%emt 0:00:00]} Re8 {[%emt 0:05:41]} 19. Ng5 {[%emt 0:00:00]} 1/2-1/2

[Event "LEM Niedersachsen-A-Open 2025"]
[Site "Verden"]
[Date "2025.01.04"]
[Round "5.21"]
[White "Muecke, Leonard"]
[Black "Nolting, Dennis"]
[Result "1-0"]
[ECO "C50"]
[WhiteElo "1853"]
[BlackElo "1937"]
[Annotator "RC"]
[PlyCount "49"]
[EventDate "2024.12.27"]
[EventType "swiss"]
[EventCountry "GER"]
[SourceTitle "playchess.com"]
[Source "ChessBase"]
[SourceQuality "1"]
[TimeControl "40/5400+30:1800+30"]

1. e4 {[%emt 0:01:30]} e5 {[%emt 0:00:04]} 2. Nf3 {[%emt 0:00:08]} Nc6 {[%emt 0:00:04]} 3. Bc4 {[%emt 0:00:04]} Nf6 {[%emt 0:00:06]} 4. d3 {[%emt 0:00:23]} Bc5 {[%emt 0:00:04]} 5. O-O {[%emt 0:00:08]} d6 {[%emt 0:00:04]} 6. h3 {[%emt 0:00:09]} h6 {[%emt 0:00:07]} 7. Nc3 {[%emt 0:00:27]} g5 {[%emt 0:00:33]} 8. Nh2 {[%emt 0:19:35]} Ne7 {[%emt 0:07:31]} 9. Be3 {[%emt 0:13:10]} Bb6 {[%emt 0:09:17]} 10. a4 {[%emt 0:13:28]} d5 {[%emt 0:02:11]} 11. exd5 {[%emt 0:03:24]} Nexd5 {[%emt 0:00:20]} 12. Nxd5 {[%emt 0:15:48]} Nxd5 {[%emt 0:00:48]} 13. Ng4 {[%emt 0:11:53]} Bxg4 {[%emt 0:07:07]} 14. Qxg4 {[%emt 0:00:09]} Nxe3 {[%emt 0:11:39]} 15. fxe3 {[%emt 0:00:21]} Bxe3+ {[%emt 0:01:56]} 16. Kh2 {[%emt 0:01:51]} Rf8 {[%emt 0:06:20]} 17. Qf5 {[%emt 0:02:04]} f6 {[%emt 0:50:49]} 18. Rae1 {[%emt 0:01:09]} Qd4 {[%emt 0:00:00]} 19. c3 {[%emt 0:02:43]} Qb6 {[%emt 0:00:00]} 20. a5 {[%emt 0:00:47]} Bf4+ {[%emt 0:00:00]} 21. Rxf4 {[%emt 0:02:30]} Qd6 {[%emt 0:00:00]} 22. Rd4 {[%emt 0:03:31]} Qc6 {[%emt 0:00:00]} 23. Rxe5+ {[%emt 0:01:02]} fxe5 {[%emt 0:00:00]} 24. Qxe5+ {[%emt 0:00:10]} Qe6 {[%emt 0:00:00]} 25. Qxe6# {[%emt 0:00:36]} 1-0

[Event "LEM Niedersachsen-A-Open 2025"]
[Site "Verden"]
[Date "2025.01.04"]
[Round "5.22"]
[White "Langer, Michael S."]
[Black "Oblender, Rudi"]
[Result "0-1"]
[ECO "B38"]
[WhiteElo "1933"]
[BlackElo "1779"]
[Annotator "RC"]
[PlyCount "74"]
[EventDate "2024.12.27"]
[EventType "swiss"]
[EventCountry "GER"]
[SourceTitle "playchess.com"]
[Source "ChessBase"]
[SourceQuality "1"]
[TimeControl "40/5400+30:1800+30"]

1. Nf3 {[%emt 0:00:12]} g6 {[%emt 0:00:15]} 2. d4 {[%emt 0:00:15]} Bg7 {[%emt 0:00:05]} 3. c4 {[%emt 0:00:16]} d6 {[%emt 0:00:08]} 4. Nc3 {[%emt 0:00:38]} Nf6 {[%emt 0:00:13]} 5. e4 {[%emt 0:00:40]} O-O {[%emt 0:00:19]} 6. h3 {[%emt 0:00:10]} c5 {[%emt 0:00:19]} 7. Be2 {[%emt 0:03:36]} cxd4 {[%emt 0:01:34]} 8. Nxd4 {[%emt 0:01:04]} Nc6 {[%emt 0:02:24]} 9. Be3 {[%emt 0:01:29]} e6 {[%emt 0:22:08]} 10. O-O {[%emt 0:12:52]} Qe7 {[%emt 0:04:51]} 11. Qd2 {[%emt 0:07:32]} Rd8 {[%emt 0:00:19]} 12. Nc2 {[%emt 0:08:03]} b6 {[%emt 0:06:56]} 13. Rad1 {[%emt 0:05:33]} Bb7 {[%emt 0:03:35]} 14. f4 {[%emt 0:05:33]} h6 {[%emt 0:29:25]} 15. Bf3 {[%emt 0:11:53]} Rd7 {[%emt 0:01:44]} 16. g4 {[%emt 0:03:36]} Nh7 {[%emt 0:00:02]} 17. e5 {[%emt 0:13:21]} Rad8 {[%emt 0:00:25]} 18. Qg2 {[%emt 0:00:13]} Na5 {[%emt 0:02:32]} 19. Bxb7 {[%emt 0:03:41]} Nxb7 {[%emt 0:00:12]} 20. Nd4 {[%emt 0:01:12]} Na5 {[%emt 0:02:23]} 21. b4 {[%emt 0:07:55]} Nxc4 {[%emt 0:00:05]} 22. Nc6 {[%emt 0:00:13]} Qf8 {[%emt 0:00:04]} 23. Bc1 {[%emt 0:03:32]} Rc8 {[%emt 0:00:37]} 24. b5 {[%emt 0:01:53]} d5 {[%emt 0:00:56]} 25. f5 {[%emt 0:01:03]} Qc5+ {[%emt 0:01:59]} 26. Kh1 {[%emt 0:00:33]} Nxe5 {[%emt 0:07:04]} 27. fxe6 {[%emt 0:01:02]} fxe6 {[%emt 0:00:23]} 28. Nxe5 {[%emt 0:00:36]} Bxe5 {[%emt 0:00:09]} 29. Ne4 {[%emt 0:00:57]} Qxb5 {[%emt 0:00:56]} 30. Ng3 {[%emt 0:05:57]} Bg7 {[%emt 0:01:24]} 31. Ne2 {[%emt 0:00:00]} d4 {[%emt 0:01:04]} 32. Nf4 {[%emt 0:00:00]} Qc6 {[%emt 0:00:45]} 33. Qxc6 {[%emt 0:00:00]} Rxc6 {[%emt 0:00:02]} 34. Nxg6 {[%emt 0:00:00]} e5 {[%emt 0:04:37]} 35. Nh4 {[%emt 0:00:00]} e4 {[%emt 0:01:31]} 36. Nf5 {[%emt 0:00:00]} d3 {[%emt 0:00:30]} 37. Rfe1 {[%emt 0:00:00]} Rxc1 {[%emt 0:01:11]} 0-1

[Event "LEM Niedersachsen-A-Open 2025"]
[Site "Verden"]
[Date "2025.01.04"]
[Round "5.23"]
[White "Ehlert, Horst"]
[Black "Gehrke, Mathias"]
[Result "1/2-1/2"]
[ECO "A48"]
[WhiteElo "1929"]
[BlackElo "1873"]
[Annotator "RC"]
[PlyCount "31"]
[EventDate "2024.12.27"]
[EventType "swiss"]
[EventCountry "GER"]
[SourceTitle "playchess.com"]
[Source "ChessBase"]
[SourceQuality "1"]
[TimeControl "40/5400+30:1800+30"]

1. d4 {[%emt 0:00:37]} Nf6 {[%emt 0:00:13]} 2. Nf3 {[%emt 0:00:46]} g6 {[%emt 0:01:04]} 3. Nbd2 {[%emt 0:01:41]} d6 {[%emt 0:00:27]} 4. e4 {[%emt 0:01:35]} Bg4 {[%emt 0:00:58]} 5. Be2 {[%emt 0:06:18]} Bg7 {[%emt 0:04:27]} 6. c3 {[%emt 0:01:41]} O-O {[%emt 0:01:17]} 7. Qb3 {[%emt 0:01:32]} Qc8 {[%emt 0:01:21]} 8. O-O {[%emt 0:02:26]} Be6 {[%emt 0:05:16]} 9. Bc4 {[%emt 0:18:51]} Bxc4 {[%emt 0:00:12]} 10. Qxc4 {[%emt 0:00:10]} Nfd7 {[%emt 0:01:27]} 11. Re1 {[%emt 0:03:24]} Nb6 {[%emt 0:06:22]} 12. Qb3 {[%emt 0:01:58]} c5 {[%emt 0:03:20]} 13. a4 {[%emt 0:04:07]} cxd4 {[%emt 0:02:41]} 14. cxd4 {[%emt 0:14:56]} Nc6 {[%emt 0:00:41]} 15. a5 {[%emt 0:04:37]} Nd7 {[%emt 0:00:12]} 16. Qc3 {[%emt 0:19:26]} 1/2-1/2

[Event "LEM Niedersachsen-A-Open 2025"]
[Site "Verden"]
[Date "2025.01.04"]
[Round "5.24"]
[White "Holtwessels, Jan"]
[Black "Boehnke, Marc"]
[Result "1-0"]
[ECO "B95"]
[WhiteElo "1812"]
[BlackElo "1927"]
[Annotator "NA RC"]
[PlyCount "49"]
[EventDate "2024.12.27"]
[EventType "swiss"]
[EventCountry "GER"]
[SourceTitle "playchess.com"]
[Source "ChessBase"]
[SourceQuality "1"]
[TimeControl "40/5400+30:1800+30"]

1. e4 {[%emt 0:00:05]} c5 {[%emt 0:14:23]} 2. Nf3 {[%emt 0:00:03]} d6 {[%emt 0:00:25]} 3. d4 {[%emt 0:00:05]} cxd4 {[%emt 0:00:04]} 4. Nxd4 {[%emt 0:00:05]} Nf6 {[%emt 0:00:04]} 5. Nc3 {[%emt 0:00:04]} a6 {[%emt 0:00:03]} 6. Bg5 {[%emt 0:00:04]} e6 {[%emt 0:00:05]} 7. Qe2 {[%emt 0:00:03]} Be7 {[%emt 0:00:07]} 8. h4 {[%emt 0:00:31] B95: Sicilian Najdorf: 6 Bg5 e6, unusual White 7th moves.} b5 {[%emt 0:02:34]} 9. O-O-O {[%emt 0:01:18]} Bb7 {[%emt 0:00:20]} 10. e5 {[%emt 0:02:21]} Nd5 {[%emt 0:02:50]} 11. Bxe7 {[%emt 0:08:43]} Qxe7 {[%emt 0:01:08]} 12. Nxd5 {[%emt 0:09:45]} Bxd5 {[%emt 0:00:51] [#]} 13. Nf5 $1 {[%emt 0:03:51]} exf5 {[%emt 0:02:58]} 14. Rxd5 {[%emt 0:02:10]} O-O {[%emt 0:03:45]} 15. exd6 {[%emt 0:03:06]} Qd7 {[%emt 0:01:33]} 16. Qf3 {[%emt 0:03:02]} Rd8 {[%emt 0:04:37]} 17. Bd3 {[%emt 0:02:36]} g6 {[%emt 0:01:03]} 18. h5 {[%emt 0:01:55]} Nc6 {[%emt 0:01:52]} 19. hxg6 {[%emt 0:07:03]} fxg6 {[%emt 0:00:43]} 20. Qg3 $2 {[%emt 0:07:22]} (20. Bxf5 $18 Qf7 21. Qg4) 20... Qe6 {[%emt 0:18:01]} 21. Rxf5 {[%emt 0:06:37]} Rxd6 {[%emt 0:05:27]} 22. Rfh5 {[%emt 0:03:20]} (22. Qh4 $16 {[%csl Gh1][%cal Rh4h7]} Ra7 (22... gxf5 $2 {perishes.} 23. Qxh7+ Kf8 24. Qb7 $18) 23. Rc5) 22... Rxd3 {[%emt 0:03:29]} 23. cxd3 {[%emt 0:03:57]} Nb4 {[%emt 0:00:21]} 24. Rxh7 {[%emt 0:05:07]} Rc8+ {[%emt 0:02:02]} 25. Kd1 $18 {[%emt 0:01:57]} 1-0

[Event "LEM Niedersachsen-A-Open 2025"]
[Site "Verden"]
[Date "2025.01.04"]
[Round "5.25"]
[White "Martin, Dennis"]
[Black "Moerke, Niklas"]
[Result "1-0"]
[ECO "E01"]
[WhiteElo "2005"]
[BlackElo "1875"]
[Annotator "RC"]
[PlyCount "131"]
[EventDate "2024.12.27"]
[EventType "swiss"]
[EventCountry "GER"]
[SourceTitle "playchess.com"]
[Source "ChessBase"]
[SourceQuality "1"]
[TimeControl "40/5400+30:1800+30"]

1. d4 {[%emt 0:00:01]} d5 {[%emt 0:00:05]} 2. c4 {[%emt 0:00:02]} e6 {[%emt 0:00:05]} 3. Nf3 {[%emt 0:00:05]} Nf6 {[%emt 0:00:09]} 4. g3 {[%emt 0:00:02]} b6 {[%emt 0:00:48]} 5. cxd5 {[%emt 0:00:02]} exd5 {[%emt 0:00:16]} 6. Bg2 {[%emt 0:00:02]} Bd6 {[%emt 0:00:45]} 7. O-O {[%emt 0:00:16]} O-O {[%emt 0:00:04]} 8. Nc3 {[%emt 0:00:12]} c6 {[%emt 0:00:46]} 9. Bf4 {[%emt 0:01:39]} Bxf4 {[%emt 0:01:24]} 10. gxf4 {[%emt 0:00:02]} Ne4 {[%emt 0:03:45]} 11. e3 {[%emt 0:02:16]} Bg4 {[%emt 0:06:00]} 12. Qc2 {[%emt 0:01:16]} Bxf3 {[%emt 0:01:47]} 13. Bxf3 {[%emt 0:00:05]} f5 {[%emt 0:00:30]} 14. Bg2 {[%emt 0:01:56]} Rf6 {[%emt 0:01:57]} 15. f3 {[%emt 0:01:18]} Nxc3 {[%emt 0:00:49]} 16. bxc3 {[%emt 0:00:02]} Nd7 {[%emt 0:01:28]} 17. Rf2 {[%emt 0:00:15]} Qe7 {[%emt 0:01:03]} 18. Re1 {[%emt 0:00:04]} Raf8 {[%emt 0:00:55]} 19. Bh3 {[%emt 0:05:19]} Qf7 {[%emt 0:03:40]} 20. Rg2 {[%emt 0:00:24]} Qh5 {[%emt 0:02:55]} 21. Rg3 {[%emt 0:00:09]} Rg6 {[%emt 0:01:12]} 22. Qg2 {[%emt 0:08:19]} Rxg3 {[%emt 0:01:33]} 23. hxg3 {[%emt 0:00:13]} Rf6 {[%emt 0:01:11]} 24. Kh2 {[%emt 0:01:07]} Rh6 {[%emt 0:02:44]} 25. g4 {[%emt 0:00:51]} fxg4 {[%emt 0:03:03]} 26. fxg4 {[%emt 0:00:06]} Qh4 {[%emt 0:02:59]} 27. g5 {[%emt 0:01:06]} Re6 {[%emt 0:03:59]} 28. Qg3 {[%emt 0:04:52]} Qxg3+ {[%emt 0:02:39]} 29. Kxg3 {[%emt 0:00:02]} Re7 {[%emt 0:00:14]} 30. e4 {[%emt 0:00:59]} dxe4 {[%emt 0:00:51]} 31. Bf5 {[%emt 0:00:02]} g6 {[%emt 0:04:43]} 32. Bxe4 {[%emt 0:02:56]} Kf8 {[%emt 0:01:03]} 33. Kf3 {[%emt 0:00:21]} c5 {[%emt 0:02:37]} 34. Rh1 {[%emt 0:06:36]} Kg7 {[%emt 0:06:28]} 35. Ke3 {[%emt 0:02:02]} cxd4+ {[%emt 0:01:54]} 36. cxd4 {[%emt 0:06:25]} Nf8 {[%emt 0:00:19]} 37. Rf1 {[%emt 0:03:37]} Ne6 {[%emt 0:02:00]} 38. f5 {[%emt 0:00:47]} gxf5 {[%emt 0:08:57]} 39. Rxf5 {[%emt 0:00:03]} Nd8 {[%emt 0:01:38]} 40. Rd5 {[%emt 0:03:46]} Nc6 {[%emt 0:02:36]} 41. Rb5 {[%emt 0:37:36]} Na5 {[%emt 0:31:19]} 42. Kd3 {[%emt 0:01:33]} Nb7 {[%emt 0:03:05]} 43. Rd5 {[%emt 0:03:31]} Na5 {[%emt 0:09:22]} 44. Rd6 {[%emt 0:01:45]} b5 {[%emt 0:05:41]} 45. Rd5 {[%emt 0:02:53]} a6 {[%emt 0:05:51]} 46. Rd6 {[%emt 0:02:35]} Ra7 {[%emt 0:00:23]} 47. Rh6 {[%emt 0:00:50]} Kg8 {[%emt 0:01:14]} 48. Bf5 {[%emt 0:01:59]} b4 {[%emt 0:03:43]} 49. Rb6 {[%emt 0:05:30]} Rb7 {[%emt 0:01:55]} 50. Rxb7 {[%emt 0:08:27]} Nxb7 {[%emt 0:00:05]} 51. Bc8 {[%emt 0:00:14]} Nd6 {[%emt 0:00:00]} 52. Bxa6 {[%emt 0:00:00]} Kg7 {[%emt 0:00:00]} 53. Ke3 {[%emt 0:00:00]} h6 {[%emt 0:00:00]} 54. gxh6+ {[%emt 0:00:00]} Kxh6 {[%emt 0:00:00]} 55. Kf4 {[%emt 0:00:00]} Kg6 {[%emt 0:00:00]} 56. Ke5 {[%emt 0:00:00]} Ne8 {[%emt 0:00:00]} 57. Bc4 {[%emt 0:00:00]} Nf6 {[%emt 0:00:00]} 58. Ke6 {[%emt 0:00:00]} Kg5 {[%emt 0:00:00]} 59. d5 {[%emt 0:00:00]} Ne4 {[%emt 0:00:00]} 60. d6 {[%emt 0:00:00]} Kf4 {[%emt 0:00:00]} 61. d7 {[%emt 0:00:00]} Nc5+ {[%emt 0:00:00]} 62. Kd6 {[%emt 0:00:00]} Nxd7 {[%emt 0:00:00]} 63. Kxd7 {[%emt 0:00:00]} Ke5 {[%emt 0:00:00]} 64. Kc6 {[%emt 0:00:00]} Kd4 {[%emt 0:00:00]} 65. Kb5 {[%emt 0:00:00]} Kc3 {[%emt 0:00:00]} 66. Bb3 {[%emt 0:00:00]} 1-0